bitfinex/quotes_SOLUSD_20251128
["timestamp","ask_amount","ask_price","bid_price","bid_amount"]
[1764350290724,0.2,137.62,137.61,5.88473843]
[1764350290929,0.2,137.62,137.56,25.44344285]
[1764350290930,2.89999999,137.62,137.56,25.44344285]
[1764350291162,10.16652414,137.62,137.59,5.88473843]
[1764350291361,5.88473843,137.6,137.42,75.0]
[1764350291565,1.99999999,137.54,137.44,5.88473843]
[1764350291763,1.99999999,137.54,137.43,3.36]
[1764350291764,1.99999999,137.51,137.43,3.36]
[1764350291971,1.99999999,137.51,137.44,31.35039616]
[1764350292178,9.9722956,137.51,137.48,5.88473843]
[1764350292350,9.2722956,137.51,137.48,5.88473843]
[1764350292548,2.69999999,137.5,137.44,7.27590221]
[1764350292753,2.69999999,137.5,137.47,5.88473843]
[1764350292948,1.99999999,137.49,137.48,5.88473843]
[1764350293282,2.69999999,137.5,137.47,5.88473843]
[1764350293573,2.69999999,137.5,137.49,5.88473843]
[1764350293752,1.99999999,137.52,137.49,5.88473843]
[1764350294080,1.99999999,137.52,137.46,25.46195256]
[1764350294081,2.69999999,137.52,137.46,25.46195256]
[1764350294269,1.99999999,137.45,137.34,7.28119994]
[1764350294458,1.99999999,137.45,137.35,21.56167455]
[1764350294459,1.99999999,137.44,137.35,21.56167455]
[1764350294649,1.99999999,137.44,137.35,37.87053855]
[1764350294971,1.99999999,137.46,137.43,5.88473843]
[1764350295164,1.99999999,137.46,137.44,5.88473843]
[1764350295367,1.99999999,137.46,137.45,5.88473843]
[1764350295871,2.71999999,137.47,137.45,5.88473843]
[1764350296078,2.71999999,137.47,137.44,7.2755761]
[1764350296079,1.99999999,137.45,137.44,5.88473843]
[1764350296463,2.71999999,137.45,137.39,3.36]
[1764350296773,2.71999999,137.45,137.44,5.88473843]
[1764350296976,2.71999999,137.45,137.37,25.47863434]
[1764350297180,2.71999999,137.44,137.42,5.88473843]
[1764350297345,1.99999999,137.45,137.43,5.88473843]
[1764350297550,1.99999999,137.45,137.44,5.88473843]
[1764350297769,1.99999999,137.45,137.38,8.80994492]
[1764350298081,2.71999999,137.45,137.44,5.88473843]
[1764350298268,0.72,137.44,137.39,25.47492539]
[1764350298448,1.99999999,137.46,137.43,5.88473843]
[1764350298649,1.99999999,137.44,137.4,8.80994492]
[1764350298849,2.71999999,137.46,137.4,8.80994492]
[1764350299059,2.71999999,137.46,137.45,5.88473843]
[1764350299253,2.71999999,137.46,137.44,5.88473843]
[1764350299574,1.99999999,137.45,137.44,5.88473843]
[1764350299775,1.99999999,137.45,137.36,7.27962747]
[1764350299776,0.72,137.45,137.36,7.27962747]
[1764350299977,1.99999999,137.42,137.41,5.88473843]
[1764350300472,2.71999999,137.42,137.41,5.88473843]
[1764350300775,2.71999999,137.42,137.4,7.27782589]
[1764350300962,2.71999999,137.42,137.41,5.88473843]
[1764350300963,0.72,137.42,137.41,5.88473843]
[1764350301280,1.99999999,137.42,137.41,5.88473843]
[1764350301778,2.71999999,137.42,137.4,13.16256432]
[1764350301968,0.72,137.41,137.4,13.16256432]
[1764350302165,7.27607178,137.44,137.4,13.16256432]
[1764350302166,1.99999999,137.43,137.4,13.16256432]
[1764350302476,2.71999999,137.43,137.42,5.88473843]
[1764350302950,1.99999999,137.44,137.42,5.88473843]
[1764350303146,2.71999999,137.45,137.43,5.88473843]
[1764350303459,1.99999999,137.45,137.44,5.88473843]
[1764350304176,2.71999999,137.45,137.44,5.88473843]
[1764350304556,2.71999999,137.47,137.44,13.16064064]
[1764350304757,1.99999999,137.45,137.44,7.27590221]
[1764350304950,1.99999999,137.45,137.44,13.16064064]
[1764350306189,2.71999999,137.45,137.43,7.27628726]
[1764350306397,0.72,137.44,137.43,5.88473843]
[1764350307175,0.72,137.44,137.42,7.27680598]
[1764350307376,0.72,137.44,137.36,7.28013977]
[1764350307377,1.99999999,137.42,137.36,7.28013977]
[1764350307586,1.99999999,137.42,137.36,13.1648782]
[1764350307769,2.71999999,137.44,137.41,5.88473843]
[1764350308074,1.99999999,137.43,137.42,5.88473843]
[1764350308274,2.71999999,137.43,137.37,8.80994492]
[1764350308478,2.71999999,137.42,137.38,13.16381835]
[1764350308791,1.99999999,137.41,137.38,13.16381835]
[1764350308966,2.71999999,137.41,137.38,13.16381835]
[1764350309168,0.72,137.4,137.38,13.16381835]
[1764350309394,0.72,137.4,137.39,5.88473843]
[1764350309779,0.72,137.4,137.38,7.27907992]
[1764350309976,0.72,137.4,137.39,5.88473843]
[1764350310490,0.72,137.4,137.38,5.88473843]
[1764350310696,1.99999999,137.39,137.34,25.48356915]
[1764350310873,1.99999999,137.39,137.37,5.88473843]
[1764350311069,1.99999999,137.39,137.38,5.88473843]
[1764350311373,2.71999999,137.41,137.38,5.88473843]
[1764350311591,2.71999999,137.41,137.4,5.88473843]
[1764350312270,5.35999999,137.43,137.4,5.88473843]
[1764350312513,2.71999999,137.41,137.37,7.27960981]
[1764350312798,2.71999999,137.41,137.31,19.45273568]
[1764350312799,1.99999999,137.38,137.31,19.45273568]
[1764350313003,1.99999999,137.38,137.31,34.29971259]
[1764350313179,2.71999999,137.38,137.31,37.65971259]
[1764350313498,0.72,137.38,137.36,5.88473843]
[1764350313795,2.71999999,137.38,137.36,5.88473843]
[1764350314001,9.99919938,137.38,137.35,5.88473843]
[1764350314198,1.99999999,137.36,137.34,5.88473843]
[1764350314391,1.99999999,137.36,137.33,5.88473843]
[1764350314586,1.99999999,137.34,137.32,5.88473843]
[1764350314986,0.69,137.33,137.32,5.88473843]
[1764350315292,1.99999999,137.34,137.32,5.88473843]
[1764350315498,2.68999999,137.34,137.33,5.88473843]
[1764350315679,1.99999999,137.35,137.33,13.16646856]
[1764350315879,1.99999999,137.35,137.34,5.88473843]
[1764350316075,2.68999999,137.35,137.34,5.88473843]
[1764350316276,2.68999999,137.35,137.32,5.88473843]
[1764350316476,2.68999999,137.34,137.32,5.88473843]
[1764350316700,0.69,137.33,137.27,18.31199278]
[1764350316901,2.68999999,137.33,137.31,10.25282817]
[1764350317083,1.99999999,137.32,137.29,10.25282817]
[1764350317280,1.99999999,137.3,137.29,10.25282817]
[1764350317677,1.99999999,137.31,137.29,7.2838517]
[1764350318007,1.99999999,137.33,137.3,10.25282817]
[1764350318191,1.99999999,137.35,137.32,10.25282817]
[1764350318386,1.99999999,137.36,137.34,10.25282817]
[1764350318687,1.99999999,137.35,137.34,10.25282817]
[1764350319095,1.99999999,137.37,137.34,10.25282817]
[1764350319295,1.99999999,137.35,137.31,8.80994492]
[1764350319678,0.69,137.37,137.32,25.48791144]
[1764350320095,2.68999999,137.37,137.32,25.48791144]
[1764350320401,2.68999999,137.37,137.36,10.25282817]
[1764350320717,2.68999999,137.37,137.32,25.48791144]
[1764350320888,2.68999999,137.37,137.36,10.25282817]
[1764350321720,1.99999999,137.39,137.36,17.5326129]
[1764350322020,7.96769443,137.41,137.36,7.27978473]
[1764350322021,1.99999999,137.38,137.36,7.27978473]
[1764350322200,1.99999999,137.38,137.31,45.50616615]
[1764350322406,1.99999999,137.38,137.32,3.34]
[1764350322631,0.69,137.39,137.32,3.34]
[1764350322791,1.99999999,137.38,137.32,3.34]
[1764350322987,2.68999999,137.39,137.33,8.80994492]
[1764350323322,1.99999999,137.38,137.33,25.48573796]
[1764350323520,1.99999999,137.38,137.37,10.25282817]
[1764350323989,2.68999999,137.38,137.37,10.25282817]
[1764350324391,0.69,137.38,137.37,10.25282817]
[1764350324592,2.68999999,137.41,137.37,10.25282817]
[1764350324792,2.68999999,137.41,137.4,10.25282817]
[1764350326422,0.69,137.43,137.4,17.53084854]
[1764350326595,0.69,137.43,137.42,10.25282817]
[1764350327098,1.99999999,137.45,137.42,10.25282817]
[1764350327296,2.68999999,137.45,137.44,10.25282817]
[1764350327497,1.99999999,137.46,137.44,10.25282817]
[1764350327693,1.99999999,137.46,137.45,17.52813938]
[1764350328097,2.68999999,137.47,137.45,17.52813938]
[1764350328297,2.68999999,137.47,137.46,10.25282817]
[1764350328713,2.68999999,137.49,137.46,10.25282817]
[1764350328919,2.68999999,137.49,137.48,10.25282817]
[1764350329943,2.68999999,137.49,137.47,10.25282817]
[1764350330227,0.69,137.48,137.47,10.25282817]
[1764350330430,2.68999999,137.48,137.47,10.25282817]
[1764350330635,2.68999999,137.52,137.47,10.25282817]
[1764350330845,2.68999999,137.52,137.51,10.25282817]
[1764350331343,2.68999999,137.55,137.51,10.25282817]
[1764350331543,2.68999999,137.55,137.46,3.34]
[1764350331544,2.68999999,137.55,137.54,10.25282817]
[1764350331717,1.99999999,137.53,137.48,10.61334973]
[1764350332031,1.99999999,137.52,137.5,10.25282817]
[1764350332333,1.99999999,137.52,137.51,10.25282817]
[1764350332504,1.99999999,137.5,137.48,10.25282817]
[1764350332830,1.99999999,137.5,137.49,10.25282817]
[1764350333020,2.68999999,137.5,137.49,10.25282817]
[1764350333738,1.99999999,137.5,137.49,10.25282817]
[1764350333909,2.68999999,137.5,137.49,10.25282817]
[1764350334110,1.99999999,137.49,137.48,10.25282817]
[1764350334533,2.68999999,137.49,137.48,10.25282817]
[1764350334832,1.99999999,137.46,137.44,10.25282817]
[1764350335034,1.99999999,137.48,137.45,10.25282817]
[1764350335231,1.99999999,137.47,137.42,25.4691664]
[1764350335821,1.99999999,137.47,137.44,25.46565773]
[1764350336444,1.99999999,137.48,137.46,10.25282817]
[1764350336647,2.68999999,137.48,137.46,10.25282817]
[1764350337066,1.99999999,137.47,137.46,10.25282817]
[1764350337362,2.68999999,137.47,137.44,10.25282817]
[1764350337530,17.52614688,137.49,137.43,10.25282817]
[1764350337531,2.68999999,137.46,137.43,10.25282817]
[1764350337963,2.68999999,137.46,137.45,10.25282817]
[1764350338858,1.99999999,137.46,137.44,10.25282817]
[1764350339048,1.99999999,137.46,137.45,10.25282817]
[1764350339858,0.69,137.48,137.45,10.25282817]
[1764350339859,1.99999999,137.47,137.45,10.25282817]
[1764350340167,0.69,137.48,137.46,10.25282817]
[1764350340356,2.68999999,137.47,137.45,7.27518087]
[1764350340665,2.68999999,137.47,137.45,10.25282817]
[1764350340874,1.99999999,137.45,137.42,10.25282817]
[1764350341172,1.99999999,137.43,137.41,17.52998182]
[1764350341464,1.99999999,137.43,137.41,7.27715365]
[1764350341640,0.69,137.43,137.41,7.27715365]
[1764350341838,1.99999999,137.43,137.42,10.25282817]
[1764350342041,0.69,137.45,137.42,10.25282817]
[1764350342042,1.99999999,137.48,137.43,7.27643163]
[1764350342246,1.99999999,137.47,137.43,25.46751072]
[1764350342464,1.99999999,137.47,137.46,10.25282817]
[1764350342767,1.99999999,137.47,137.45,10.25282817]
[1764350342972,1.99999999,137.47,137.46,10.25282817]
[1764350343472,1.99999999,137.51,137.46,17.52726406]
[1764350343670,1.99999999,137.51,137.5,10.25282817]
[1764350343860,75.0,137.59,137.5,10.25282817]
[1764350343861,1.99999999,137.52,137.5,10.25282817]
[1764350344051,1.99999999,137.52,137.51,10.25282817]
[1764350344246,1.99999999,137.53,137.51,10.25282817]
[1764350344551,1.99999999,137.5,137.47,10.25282817]
[1764350344762,1.99999999,137.5,137.46,25.46154486]
[1764350345075,2.70999999,137.49,137.48,10.25282817]
[1764350346349,3.34,137.52,137.48,17.52661344]
[1764350346350,1.99999999,137.52,137.48,17.52661344]
[1764350346551,1.99999999,137.5,137.47,10.25282817]
[1764350346856,1.99999999,137.49,137.47,10.25282817]
[1764350347450,0.71,137.48,137.47,10.25282817]
[1764350347655,2.70999999,137.48,137.44,10.25282817]
[1764350347957,1.99999999,137.47,137.46,10.25282817]
[1764350348155,2.70999999,137.47,137.45,10.25282817]
[1764350348356,0.71,137.46,137.42,25.46812819]
[1764350348574,1.99999999,137.47,137.45,10.25282817]
[1764350348575,2.70999999,137.47,137.45,10.25282817]
[1764350348761,0.71,137.46,137.44,10.25282817]
[1764350349362,0.71,137.46,137.45,10.25282817]
[1764350349657,1.99999999,137.48,137.45,10.25282817]
[1764350349975,1.99999999,137.51,137.47,10.25282817]
[1764350350187,1.99999999,137.53,137.5,10.25282817]
[1764350350473,1.99999999,137.53,137.52,10.25282817]
[1764350350843,2.70999999,137.53,137.52,10.25282817]
[1764350351262,0.71,137.53,137.52,10.25282817]
[1764350351464,1.99999999,137.52,137.51,10.25282817]
[1764350352091,0.71,137.54,137.51,10.25282817]
[1764350352271,0.71,137.54,137.53,10.25282817]
[1764350352589,2.70999999,137.54,137.53,10.25282817]
[1764350352768,0.71,137.54,137.53,10.25282817]
[1764350353093,2.70999999,137.54,137.53,10.25282817]
[1764350353393,10.25282817,137.58,137.53,10.25282817]
[1764350353394,1.99999999,137.58,137.54,7.27061218]
[1764350353563,1.99999999,137.6,137.57,10.25282817]
[1764350353765,1.99999999,137.58,137.57,10.25282817]
[1764350353965,0.71,137.6,137.57,10.25282817]
[1764350354166,2.70999999,137.6,137.57,10.25282817]
[1764350354389,1.99999999,137.59,137.57,10.25282817]
[1764350354591,0.71,137.59,137.58,10.25282817]
[1764350354780,0.71,137.58,137.57,10.25282817]
[1764350354964,0.71,137.58,137.54,25.44714264]
[1764350355164,2.70999999,137.58,137.54,7.27061218]
[1764350355362,2.70999999,137.58,137.56,10.25282817]
[1764350355587,2.70999999,137.58,137.57,10.25282817]
[1764350355793,0.71,137.57,137.56,10.25282817]
[1764350355971,2.70999999,137.57,137.56,10.25282817]
[1764350356393,2.70999999,137.57,137.52,7.27166957]
[1764350356607,1.99999999,137.55,137.54,10.25282817]
[1764350356972,2.69999999,137.55,137.53,10.25282817]
[1764350357169,2.69999999,137.55,137.54,10.25282817]
[1764350358094,1.99999999,137.53,137.48,3.34]
[1764350358308,1.99999999,137.53,137.52,10.25282817]
[1764350358674,1.99999999,137.55,137.52,10.25282817]
[1764350358995,2.69999999,137.56,137.54,10.25282817]
[1764350359373,1.99999999,137.56,137.55,10.25282817]
[1764350359796,1.99999999,137.6,137.56,7.2695551]
[1764350360007,1.99999999,137.61,137.59,10.25282817]
[1764350360305,1.99999999,137.61,137.6,10.25282817]
[1764350360678,1.99999999,137.61,137.56,25.44344285]
[1764350360871,1.99999999,137.61,137.6,10.25282817]
[1764350361085,1.99999999,137.61,137.51,0.72721983]
[1764350361086,1.99999999,137.54,137.4,10.25282817]
[1764350361304,1.99999999,137.53,137.41,4.04774907]
[1764350361480,1.99999999,137.53,137.43,16.308864]
[1764350361876,1.99999999,137.53,137.41,65.90535977]
[1764350362193,1.99999999,137.53,137.45,8.80994492]
[1764350362381,1.99999999,137.55,137.52,10.25282817]
[1764350362595,1.99999999,137.55,137.54,10.25282817]
[1764350363901,1.99999999,137.56,137.54,10.25282817]
[1764350364099,1.99999999,137.55,137.53,17.52351288]
[1764350364303,1.99999999,137.54,137.52,7.27144601]
[1764350364598,2.69999999,137.54,137.52,7.27144601]
[1764350364803,0.7,137.53,137.52,7.27144601]
[1764350365017,1.99999999,137.54,137.52,7.27144601]
[1764350365302,2.69999999,137.54,137.52,7.27144601]
[1764350365703,0.7,137.54,137.52,7.27144601]
[1764350365904,0.7,137.53,137.35,76.65382464]
[1764350366110,1.99999999,137.51,137.45,19.42531778]
[1764350366337,1.99999999,137.51,137.48,10.25282817]
[1764350366540,2.69999999,137.51,137.48,10.25282817]
[1764350366718,0.7,137.5,137.48,10.25282817]
[1764350366915,0.7,137.5,137.49,7.27325623]
[1764350367328,1.99999999,137.51,137.49,17.5260844]
[1764350367638,1.99999999,137.52,137.5,10.25282817]
[1764350367836,1.99999999,137.53,137.51,10.25282817]
[1764350368029,1.99999999,137.53,137.52,10.25282817]
[1764350368534,2.69999999,137.53,137.51,17.5248267]
[1764350370323,2.69999999,137.53,137.45,12.43426806]
[1764350370324,1.99999999,137.52,137.5,10.25282817]
[1764350370743,0.7,137.51,137.49,10.25282817]
[1764350371240,0.7,137.51,137.47,21.5256052]
[1764350371241,2.69999999,137.51,137.48,10.25282817]
[1764350371716,0.7,137.5,137.48,10.25282817]
[1764350371917,0.7,137.5,137.49,7.27325623]
[1764350372528,1.99999999,137.51,137.49,7.27325623]
[1764350372743,2.69999999,137.51,137.49,7.27325623]
[1764350373064,1.99999999,137.52,137.5,10.25282817]
[1764350373222,1.99999999,137.52,137.46,34.27189748]
[1764350373422,106.79999999,137.53,137.46,34.27189748]
[1764350374166,106.79999999,137.53,137.46,70.64611543]
[1764350374365,2.69999999,137.53,137.52,10.25282817]
[1764350374523,1.99999999,137.52,137.51,10.25282817]
[1764350374848,1.99999999,137.51,137.49,10.25282817]
[1764350375058,2.67999999,137.51,137.49,10.25282817]
[1764350376043,2.67999999,137.5,137.48,10.25282817]
[1764350376246,1.99999999,137.5,137.49,7.27325623]
[1764350376442,1.99999999,137.5,137.49,17.5260844]
[1764350376628,1.99999999,137.5,137.49,13.14711627]
[1764350377151,1.99999999,137.5,137.49,5.87386004]
[1764350378536,2.67999999,137.5,137.48,5.87386004]
[1764350378854,0.68,137.5,137.48,5.87386004]
[1764350379055,2.67999999,137.5,137.48,5.87386004]
[1764350379461,0.68,137.49,137.48,5.87386004]
[1764350379651,2.67999999,137.5,137.48,5.87386004]
[1764350380639,2.67999999,137.5,137.49,7.27325623]
[1764350380930,2.67999999,137.49,137.45,24.06217645]
[1764350381261,1.99999999,137.48,137.45,7.2748811]
[1764350381483,0.68,137.48,137.45,7.2748811]
[1764350381684,0.68,137.47,137.45,7.2748811]
[1764350381995,0.68,137.47,137.42,57.89546927]
[1764350381996,1.99999999,137.46,137.43,5.87386004]
[1764350382291,1.99999999,137.45,137.4,9.19386004]
[1764350382579,1.99999999,137.44,137.41,7.2769709]
[1764350382750,1.99999999,137.44,137.41,13.15083094]
[1764350382956,1.99999999,137.44,137.43,5.87386004]
[1764350383486,1.99999999,137.44,137.42,5.87386004]
[1764350384474,0.68,137.46,137.41,25.4706977]
[1764350384475,1.99999999,137.45,137.43,5.87386004]
[1764350384658,1.99999999,137.45,137.43,13.15018543]
[1764350384860,1.99999999,137.45,137.44,5.87386004]
[1764350385064,1.99999999,137.47,137.44,5.87386004]
[1764350385364,1.99999999,137.48,137.46,5.87386004]
[1764350385673,2.67999999,137.48,137.47,5.87386004]
[1764350385866,2.67999999,137.47,137.46,5.87386004]
[1764350386066,1.99999999,137.49,137.46,5.87386004]
[1764350386381,1.99999999,137.49,137.47,5.87386004]
[1764350386583,2.67999999,137.49,137.47,5.87386004]
[1764350386882,2.67999999,137.48,137.46,5.87386004]
[1764350387061,1.99999999,137.47,137.46,5.87386004]
[1764350387462,2.67999999,137.47,137.45,5.87386004]
[1764350387672,0.68,137.46,137.45,5.87386004]
[1764350388273,0.68,137.46,137.44,5.87386004]
[1764350389071,0.68,137.46,137.45,5.87386004]
[1764350389859,104.1,137.48,137.45,5.87386004]
[1764350390064,104.78,137.48,137.47,5.87386004]
[1764350390285,1.99999999,137.47,137.46,5.87386004]
[1764350390688,0.68,137.47,137.46,5.87386004]
[1764350390878,2.67999999,137.47,137.46,5.87386004]
[1764350391389,0.68,137.47,137.46,5.87386004]
[1764350391588,2.67999999,137.47,137.46,5.87386004]
[1764350391896,2.67999999,137.47,137.45,5.87386004]
[1764350392267,0.68,137.46,137.45,5.87386004]
[1764350394093,2.67999999,137.46,137.45,5.87386004]
[1764350395294,0.68,137.46,137.45,5.87386004]
[1764350395495,2.67999999,137.46,137.45,5.87386004]
[1764350395714,2.67999999,137.46,137.32,0.72822604]
[1764350395911,1.99999999,137.43,137.42,5.87386004]
[1764350396077,1.99999999,137.43,137.41,5.87386004]
[1764350396274,2.67999999,137.42,137.4,5.87386004]
[1764350396684,0.68,137.41,137.39,5.87386004]
[1764350396989,1.99999999,137.4,137.38,5.87386004]
[1764350397509,0.68,137.4,137.39,5.87386004]
[1764350397924,2.67999999,137.4,137.39,5.87386004]
[1764350398103,0.68,137.4,137.39,5.87386004]
[1764350398287,2.67999999,137.4,137.34,8.90994492]
[1764350398492,2.67999999,137.4,137.38,5.87386004]
[1764350398803,2.67999999,137.4,137.39,5.87386004]
[1764350399181,1.99999999,137.41,137.39,5.87386004]
[1764350399387,1.99999999,137.4,137.39,5.87386004]
[1764350399590,0.68,137.4,137.34,8.90994492]
[1764350399796,1.99999999,137.4,137.38,5.87386004]
[1764350400290,2.67999999,137.4,137.38,5.87386004]
[1764350400506,0.68,137.39,137.36,5.87386004]
[1764350400694,2.67999999,137.39,137.36,5.87386004]
[1764350400894,1.99999999,137.38,137.36,5.87386004]
[1764350401088,2.67999999,137.38,137.34,5.97386004]
[1764350401288,0.68,137.37,137.35,5.87386004]
[1764350401603,1.99999999,137.35,137.34,5.97386004]
[1764350401807,1.99999999,137.35,137.34,0.1]
[1764350402004,2.67999999,137.35,137.34,0.1]
[1764350402510,1.99999999,137.36,137.34,5.97386004]
[1764350402721,1.99999999,137.38,137.34,0.1]
[1764350402900,1.99999999,137.36,137.34,0.1]
[1764350403424,2.67999999,137.35,137.34,0.1]
[1764350403994,2.67999999,137.35,137.34,5.97386004]
[1764350405311,2.67999999,137.35,137.34,0.1]
[1764350405515,2.67999999,137.35,137.31,5.87386004]
[1764350405516,1.99999999,137.32,137.31,5.87386004]
[1764350405711,1.99999999,137.31,137.3,5.97386004]
[1764350406220,2.68999999,137.31,137.3,5.97386004]
[1764350406388,1.99999999,137.31,137.3,5.97386004]
[1764350406588,1.99999999,137.33,137.3,6.07386004]
[1764350406911,0.69,137.36,137.3,6.07386004]
[1764350406912,1.99999999,137.31,137.3,0.1]
[1764350407817,1.99999999,137.32,137.3,0.1]
[1764350408116,1.99999999,137.32,137.31,5.87386004]
[1764350409093,1.99999999,137.33,137.31,5.87386004]
[1764350409292,1.99999999,137.33,137.3,0.1]
[1764350409293,1.99999999,137.33,137.32,5.87386004]
[1764350409493,2.68999999,137.34,137.32,5.87386004]
[1764350409693,2.68999999,137.34,137.33,5.87386004]
[1764350410213,1.99999999,137.34,137.33,5.87386004]
[1764350410426,2.68999999,137.34,137.33,5.87386004]
[1764350411716,1.99999999,137.32,137.3,0.1]
[1764350411930,1.99999999,137.32,137.31,5.87386004]
[1764350412101,2.68999999,137.32,137.31,5.87386004]
[1764350412796,1.99999999,137.32,137.31,5.87386004]
[1764350413004,1.99999999,137.34,137.31,5.87386004]
[1764350413209,1.99999999,137.34,137.33,5.87386004]
[1764350413998,2.68999999,137.34,137.33,5.87386004]
[1764350414830,16.308864,137.38,137.33,5.87386004]
[1764350414831,1.99999999,137.35,137.33,5.87386004]
[1764350415139,1.99999999,137.32,137.3,0.1]
[1764350415419,1.99999999,137.32,137.31,5.87386004]
[1764350415804,2.67999999,137.32,137.31,5.87386004]
[1764350416120,2.67999999,137.32,137.3,0.1]
[1764350416319,9.96279075,137.31,137.3,5.97386004]
[1764350416703,2.67999999,137.31,137.3,5.97386004]
[1764350416904,9.96279075,137.31,137.3,5.97386004]
[1764350418527,9.96279075,137.31,137.3,0.1]
[1764350419807,2.67999999,137.31,137.3,5.97386004]
[1764350420016,9.96279075,137.31,137.3,0.1]
[1764350421014,1.99999999,137.28,137.27,5.97386004]
[1764350421215,1.99999999,137.25,137.24,7.28631677]
[1764350421419,1.99999999,137.22,137.21,34.31762399]
[1764350421633,1.99999999,137.22,137.21,13.16195857]
[1764350421817,1.99999999,137.25,137.22,8.80994492]
[1764350422022,1.99999999,137.25,137.24,5.87386004]
[1764350422439,1.99999999,137.25,137.21,26.17834486]
[1764350422624,1.99999999,137.25,137.24,5.87386004]
[1764350423211,1.99999999,137.25,137.21,25.50834486]
[1764350423212,1.99999999,137.24,137.21,25.50834486]
[1764350423539,1.99999999,137.23,137.21,25.50834486]
[1764350423736,1.99999999,137.23,137.21,26.17834486]
[1764350424325,16.308864,137.3,137.21,26.17834486]
[1764350424326,16.308864,137.3,137.22,0.3]
[1764350424626,0.68,137.33,137.28,16.308864]
[1764350424825,0.68,137.33,137.28,22.18272404]
[1764350425142,0.68,137.33,137.32,5.87386004]
[1764350425731,80.87386004,137.4,137.32,5.87386004]
[1764350425732,0.68,137.39,137.32,5.87386004]
[1764350425937,0.68,137.39,137.29,16.59318714]
[1764350425938,0.68,137.41,137.38,5.87386004]
[1764350426136,0.68,137.41,137.4,5.87386004]
[1764350426340,7.95749072,137.41,137.4,5.87386004]
[1764350426550,5.87386004,137.47,137.4,5.87386004]
[1764350426551,0.68,137.45,137.4,5.87386004]
[1764350426753,0.68,137.45,137.36,5.87386004]
[1764350426754,7.27431439,137.47,137.44,5.87386004]
[1764350426945,7.27431439,137.47,137.46,5.87386004]
[1764350427335,7.95431439,137.47,137.46,5.87386004]
[1764350427668,7.47393772,137.48,137.46,5.87386004]
[1764350427971,8.15393772,137.48,137.41,9.09426806]
[1764350428335,8.15393772,137.48,137.42,7.27696114]
[1764350428535,0.2,137.48,137.43,8.80994492]
[1764350428836,0.2,137.48,137.44,0.28432314]
[1764350429040,0.2,137.48,137.47,5.87386004]
[1764350430193,0.2,137.48,137.47,13.14817443]
[1764350430336,7.27061218,137.54,137.47,13.14817443]
[1764350430536,7.27061218,137.54,137.53,5.87386004]
[1764350430843,0.68,137.54,137.53,5.87386004]
[1764350431038,0.68,137.56,137.53,5.87386004]
[1764350431259,18.17228276,137.58,137.55,5.87386004]
[1764350431461,0.68,137.58,137.57,5.87386004]
[1764350431772,7.94849832,137.58,137.57,5.87386004]
[1764350431970,10.56808636,137.59,137.57,5.87386004]
[1764350432145,11.24808636,137.59,137.58,5.87386004]
[1764350432553,7.26750553,137.6,137.58,5.87386004]
[1764350432757,7.26750553,137.6,137.59,5.87386004]
[1764350433271,13.82136557,137.6,137.49,0.28432314]
[1764350433444,6.55386004,137.59,137.54,5.87386004]
[1764350433652,7.26849832,137.58,137.53,5.87386004]
[1764350433854,26.11974414,137.58,137.54,5.87386004]
[1764350434065,0.68,137.57,137.54,5.87386004]
[1764350434263,0.68,137.6,137.56,5.87386004]
[1764350434564,0.2,137.62,137.59,5.87386004]
[1764350434768,0.2,137.62,137.61,5.87386004]
[1764350434987,8.18638569,137.62,137.61,5.87386004]
[1764350435393,8.18638569,137.62,137.58,5.87386004]
[1764350435692,7.98713066,137.61,137.58,5.87386004]
[1764350436080,0.72,137.6,137.58,5.87386004]
[1764350436290,3.3,137.59,137.46,36.37182865]
[1764350436514,16.308864,137.58,137.53,5.87386004]
[1764350436808,17.028864,137.58,137.54,5.87386004]
[1764350436966,0.72,137.57,137.54,5.87386004]
[1764350437789,7.98911665,137.57,137.54,5.87386004]
[1764350437992,0.72,137.57,137.54,5.87386004]
[1764350438299,4.02,137.59,137.56,5.87386004]
[1764350438504,4.02,137.59,137.57,5.87386004]
[1764350438668,25.43789518,137.59,137.5,26.29912135]
[1764350438869,0.72,137.58,137.55,10.21649352]
[1764350439086,10.93649352,137.58,137.52,10.21649352]
[1764350439287,10.21649352,137.57,137.51,10.21649352]
[1764350439489,10.21649352,137.57,137.53,10.21649352]
[1764350439490,0.72,137.57,137.53,10.21649352]
[1764350439791,24.29882615,137.56,137.52,10.21649352]
[1764350439973,27.59882615,137.56,137.52,10.21649352]
[1764350440174,0.72,137.55,137.52,10.21649352]
[1764350440470,0.72,137.55,137.51,10.21649352]
[1764350440684,10.21649352,137.54,137.47,7.27410091]
[1764350441012,10.21649352,137.53,137.48,10.21649352]
[1764350441171,3.3,137.52,137.48,10.21649352]
[1764350441370,4.02,137.52,137.48,10.21649352]
[1764350441603,0.72,137.51,137.49,10.21649352]